Cogmind - Beta 17.1 @@@ ROGUE MODE // 2026.08.30 @ 16:12:35 Player: ATOM Result: Destroyed by as-41449 with Assembled Rifle Performance ------------- Evolutions (0) 0 Regions Visited (2) 400 Robots Destroyed (24) 120 Value Destroyed (675) 675 Prototype IDs (2) 40 Alien Tech Used (0) 0 Bonus (0) 0 TOTAL SCORE: 1235 Bonus ------- None Cogmind --------- Core Integrity 0/250 Matter 249/300 Energy 218/250 System Corruption 4% Temperature Warm (156) Movement Rolling (115) Ox1 Location -10/Mines Parts ------- > --- POWER (1) -------- Ion Engine > --- PROPULSION (2) --- Compact Wheel > --- UTILITY (2) ------ Large Storage Unit Hacking Suite > --- WEAPON (2) ------- EM Pulse Gun Particle Cannon > --- INVENTORY (15) --- Light Ion Engine Compact Wheel Compact Wheel Improved Heat Sink Improved Terrain Scanner Targeting Computer ECM Suite Core Shielding Utility Shielding Medium Armor Plating Medium Armor Plating Medium Armor Plating Shield Generator Particle Cannon Peak State ------------ > --- POWER ------------ Ion Engine > --- PROPULSION ------- Light Treads Wheel > --- UTILITY ---------- Large Storage Unit Hacking Suite > --- WEAPON ----------- Particle Cannon Grenade Launcher > --- INVENTORY -------- Light Ion Engine Wheel Improved Heat Sink Improved Terrain Scanner Targeting Computer ECM Suite Core Shielding Utility Shielding Medium Armor Plating Medium Armor Plating Medium Armor Plating Shield Generator Light Cannon [Rating: 12] Favorites ----------- Power Ion Engine Engine Ion Engine Propulsion Compact Wheel Treads Light Treads Wheel Compact Wheel Utility Hacking Suite Device Heat Sink Storage Large Storage Unit Hackware Hacking Suite Weapon Grenade Launcher Energy Gun EM Pulse Gun Energy Cannon Particle Cannon Ballistic Gun Assault Rifle Ballistic Cannon Light Cannon Launcher Grenade Launcher Build | -11 -10 -10 ------- Run | Yrd Mat Min Slots Evolved . | . . . Power . | . . . Propulsion . | . . . Utility . | . . . Weapon . | . . . Parts Attached 21 | 6 14 1 Power 3 | 1 2 . Engine 3 | 1 2 . Core . | . . . Reactor . | . . . Propulsion 7 | 2 5 . Treads 2 | . 2 . Leg . | . . . Wheel 5 | 2 3 . Hover . | . . . Flight . | . . . Utility 4 | 1 3 . Device 1 | . 1 . Storage 2 | 1 1 . Processor . | . . . Hackware 1 | . 1 . Protection . | . . . Artifact . | . . . Weapon 7 | 2 4 1 Energy Gun 1 | . . 1 Energy Cannon 1 | . 1 . Ballistic Gun 2 | 2 . . Ballistic Cannon 1 | . 1 . Launcher 2 | . 2 . Special Weapon . | . . . Impact Weapon . | . . . Slashing Weapon . | . . . Piercing Weapon . | . . . Special Melee Weapon . | . . . Unidentified Prototypes . | . . . Parts Lost 7 | . 5 2 Power 1 | . 1 . Propulsion 3 | . 2 1 Utility . | . . . Weapon 3 | . 2 1 Highest Loss Streak 4 | . 4 2 To Critical Strikes . | . . . Average Backups 9 | 1 8 15 Power . | . . 1 Propulsion 1 | 1 . 2 Utility 6 | . 6 10 Weapon . | . . 2 Tool/Special . | . . . Unused Backups 15 | . 1 14 Power 1 | . . 1 Propulsion 3 | . 1 2 Utility 10 | . . 10 Weapon 1 | . . 1 Tool/Special . | . . . Average Slot Usage (%) 91 | . 91 98 Engine 13 | . 13 14 Treads 11 | . 11 14 Wheel 13 | . 12 14 Device 1 | . 1 . Storage 14 | . 14 14 Hackware 12 | . 11 14 Energy Cannon 2 | . 1 14 Ballistic Gun 7 | . 8 . Ballistic Cannon 5 | . 5 . Launcher 9 | . 8 12 Peak Build Rating 12 | 6 12 12 Average Rating 9 | 4 9 11 On Entrance 6 | . 6 12 Avg Prop Armor Cover (%) 12 | . 12 12 Naked Turns . | . . . Heaviest Build 32 | 14 32 32 Greatest Support 40 | 32 40 16 Greatest Overweight (x) 3 | . 3 1 Average Overweight (x) . | . . 1 Largest Inventory Capacity 15 | 8 15 15 Average Capacity 12 | 7 12 15 Most Carried 15 | 3 15 15 Average Carried 9 | 1 9 14 Final Capacity 15 | 8 15 15 Final Carried 15 | 3 15 14 Class Distribution -------------------- 100% | Mutant Dominant Class ---------------- Mutant | -10/Materials Mutant | -10/Mines Resources | -11 -10 -10 ----------- Run | Yrd Mat Min Matter Collected 679 | 174 456 49 Remotely . | . . . Salvage Created 561 | . 512 49 Parts 45 | . 41 4 Haulers Intercepted . | . . . Recyclers Shooed . | . . . Parts Field Recycled . | . . . Retrieved Matter . | . . . Parts Self-Destructed . | . . . Prevented . | . . . Parts Restored . | . . . Kills | -11 -10 -10 ------- Run | Yrd Mat Min Combat Hostiles Destroyed 17 | . 14 3 Guns 4 | . 4 . Cannons 9 | . 6 3 AOE 4 | . 4 . Classes Destroyed 7 | . 6 1 Worker 1 | . 1 . Builder 1 | . 1 . Tunneler 1 | . 1 . Operator 2 | . 2 . Watcher 2 | . 2 . Swarmer 3 | . . 3 Grunt 14 | . 14 . Best Kill Streak 6 | . 6 3 Combat Bots Only 5 | . 5 3 Max Kills in Single Turn 3 | . 3 1 Gunslinging . | . . . Exploded 2 | . 2 . Melee . | . . . Uniques/NPCs Destroyed . | . . . Combat | -11 -10 -10 -------- Run | Yrd Mat Min Hostile Shots Fired 134 | . 97 37 Missed 45 | . 31 14 Hits 89 | . 66 23 Melee 4 | . . 4 Projectile 85 | . 66 19 Critical Strikes 2 | . 2 . Damage Taken 1186 | . 865 321 Core 250 | . 167 83 Absorbed by Shields . | . . . Core Remaining (%) 100 | 100 . . Volleys Fired 57 | . 43 14 Largest 2 | . 2 2 Hottest 108 | . 60 108 Shots Fired 87 | . 70 17 Gun 37 | . 35 2 Cannon 34 | . 20 14 Launcher 16 | . 15 1 Special . | . . . Kinetic 55 | . 55 . Thermal 14 | . . 14 Explosive 16 | . 15 1 Electromagnetic 2 | . . 2 Robot Hit Streak 6 | . 6 3 Robot Miss Streak 4 | . 4 3 Penetration Max . | . . . Secondary Targets . | . . . Shots Hit Robots 37 | . 29 8 Core Hits 37 | . 33 4 Critical Kills 1 | . 1 . Critical Parts Destroyed . | . . . Critical Strikes 1 | . 1 . Destroy 1 | . 1 . Melee Attacks . | . . . Impact . | . . . Slashing . | . . . Piercing . | . . . Sneak Attacks . | . . . Combat Hostiles . | . . . Follow-up Attacks . | . . . Damage Inflicted 1433 | . 1156 277 Guns 277 | . 256 21 Cannons 352 | . 188 164 Explosions 804 | . 712 92 Melee . | . . . Ramming . | . . . Kinetic 444 | . 444 . Thermal 164 | . . 164 Explosive 804 | . 712 92 Electromagnetic 21 | . . 21 Impact . | . . . Slashing . | . . . Piercing . | . . . Highest Corruption 4 | . . 4 Average Corruption 4 | . . 4 Corruption Purged . | . . . Corruption Blocked . | . . . Overload Shots . | . . . Overflow Damage 29 | . 9 20 Projectiles 1 | . . 1 Explosions 28 | . 9 19 Melee . | . . . Knockbacks 1 | . 1 . Impact . | . . . Kinetic 1 | . 1 . Secondary . | . . . Self-Inflicted Damage 110 | . 74 36 Shots 4 | . 3 1 Rammed . | . . . Targets Rammed . | . . . Kicked . | . . . Crushed . | . . . Highest Temperature 252 | . 38 252 Average Temperature 80 | . 14 115 Received Heat Transfer 506 | . 486 20 Effects 1 | . . 1 Interference 1 | . . 1 Siege Activations . | . . . Martial Activations . | . . . Shielding Activations . | . . . Robots Disrupted . | . . . Combat Hostiles . | . . . Robots Corrupted . | . . . Combat Hostiles . | . . . Parts Fried . | . . . Impact Corruptions . | . . . Robots Melted . | . . . Combat Hostiles . | . . . Parts Melted 1 | . . 1 Heat Transferred 296 | . . 296 Parts Sabotaged . | . . . Parts Stolen . | . . . Parts Stripped . | . . . Power Chain Reactions . | . . . Alert | -11 -10 -10 ------- Run | Yrd Mat Min Maximum Alert Level . | . . . Low Security (%) 100 | 100 100 100 Level 1 . | . . . Level 2 . | . . . Level 3 . | . . . Level 4 . | . . . Level 5 . | . . . High Security . | . . . Max Security . | . . . Peak Influence 179 | . 179 75 Initial . | . . . Average 66 | . 70 57 Influence Increases 691 | . 595 96 Destroy 0b10 Robot/C 340 | . 280 60 Destroy 0b10 Robot/NC 35 | . 35 . Destroy Leader 84 | . 74 10 Successful Hack 27 | . 27 . Disable Machine 60 | . 45 15 Destroy Structure 100 | . 89 11 Lose Combat Pursuer 45 | . 45 . Influence Decreases 655 | . 595 60 Time Decay 508 | . 468 40 Lost Part 70 | . 50 20 Purge Threat 77 | . 77 . Squads Dispatched 3 | . 3 . Investigation 1 | . 1 . Extermination . | . . . Reinforcement 2 | . 2 . Assault . | . . . Garrison . | . . . Intercept . | . . . Searches Triggered . | . . . Construction Impeded . | . . . Haulers Reinforced . | . . . Active Scanning Responses . | . . . Cargo Convoy Interrupts . | . . . Stealth | -11 -10 -10 --------- Run | Yrd Mat Min Distress Signals 1 | . 1 . Communications Jammed . | . . . Distress Signals . | . . . Times Spotted 40 | . 23 17 Peak Tracking Total 16 | . 6 16 Tactical Retreats 3 | . 2 1 Traps | -11 -10 -10 ------- Run | Yrd Mat Min Traps Triggered 1 | . 1 . Indirectly . | . . . Trap Hack Attempts . | . . . Triggered . | . . . Disarmed . | . . . Reprogrammed . | . . . Reused . | . . . Traps Extracted . | . . . Installed . | . . . Triggered . | . . . Machines | -11 -10 -10 ---------- Run | Yrd Mat Min Machines Disabled 4 | . 3 1 Max in Single Turn 1 | . 1 1 Machines Repaired . | . . . Machines Dismantled . | . . . Machines Sabotaged . | . . . Overloaded Fab Kills . | . . . Hacking | -11 -10 -10 --------- Run | Yrd Mat Min Machines Accessed 9 | . 9 . Terminals 7 | . 7 . Fabricators . | . . . Repair Stations . | . . . Recycling Units 2 | . 2 . Scanalyzers . | . . . Garrison Access . | . . . Total Hacks 16 | . 16 . Successful 9 | . 9 . Failed 7 | . 7 . Catastrophic 1 | . 1 . Database Lockouts . | . . . Manual . | . . . Terminals 14 | . 14 . Fabricators . | . . . Repair Stations . | . . . Recycling Units 2 | . 2 . Scanalyzers . | . . . Garrison Access . | . . . Terminal Hacks 7 | . 7 . Record 1 | . 1 . Prototype ID Bank 1 | . 1 . Level Access Points 1 | . 1 . Branch Access Points 1 | . 1 . Unreport Threat 2 | . 2 . Zone Layout 1 | . 1 . Fabricator Hacks . | . . . Repair Station Hacks . | . . . Recycling Unit Hacks 2 | . 2 . Report Inventory 2 | . 2 . Scanalyzer . | . . . Garrison Access Hacks . | . . . Unauthorized Hacks . | . . . Terminals . | . . . Fabricators . | . . . Repair Stations . | . . . Recycling Units . | . . . Scanalyzers . | . . . Garrison Access . | . . . Data Cores Recovered . | . . . Used . | . . . Hacking Detections 7 | . 7 . Full Trace Events . | . . . Feedback Events . | . . . Feedback Blocked . | . . . Robot Schematics Acquired . | . . . Robots Built . | . . . Authchips . | . . . Time . | . . . Total Robot Build Rating . | . . . Part Schematics Acquired . | . . . Parts Built . | . . . Authchips . | . . . Time . | . . . Total Part Build Rating . | . . . Part Studies Acquired . | . . . Parts Repaired . | . . . Time . | . . . Parts Recycled . | . . . Recycled Matter . | . . . Retrieved Matter . | . . . Retrieved Components . | . . . Parts Scanalyzed . | . . . Part Schematics Acquired . | . . . Parts Damaged . | . . . Bothacking | -11 -10 -10 ------------ Run | Yrd Mat Min Used RIF Installer . | . . . Robots Hacked . | . . . Non-combat . | . . . Combat . | . . . Robot Hacks Applied . | . . . Relay Couplers Released . | . . . Fabnet Peak Effective % . | . . . Robots Rewired . | . . . Allies Hacked . | . . . Hacks Repelled . | . . . Allies | -11 -10 -10 -------- Run | Yrd Mat Min Total Allies . | . . . Largest Group . | . . . Highest-Rated Group . | . . . Highest-Rated Ally . | . . . Total Orders . | . . . Ally Attacks . | . . . Total Damage . | . . . Kills . | . . . Allies Corrupted . | . . . Allies Melted . | . . . Intel | -11 -10 -10 ------- Run | Yrd Mat Min Active Infowar (turns) . | . . . Robot Analysis Total . | . . . Derelict Logs Recovered . | . . . Drone Launches . | . . . Drone Recoveries . | . . . Exploration | -11 -10 -10 ------------- Run | Yrd Mat Min Turns Passed 1624 | 59 1476 89 Spaces Moved 1061 | 45 965 51 Core 1 | 1 . . Treads 154 | . 154 . Legs . | . . . Wheels 906 | 44 811 51 Hover . | . . . Flight . | . . . Fastest Speed 50 | 50 100 115 Average Speed 127 | 98 129 115 Slowest Speed 240 | 100 240 115 Overloaded Moves . | . . . Propulsion Burnouts . | . . . Robots Hopped . | . . . Potential Cave-ins . | . . . Cave-ins Triggered . | . . . Exploration Rate (%) 37 | 4 98 9 Regions Visited 2 Branch Regions 1 Pre-discovered Areas . | . . . Known Exits Taken 1 | . 1 . Unknown Exits Taken 1 | 1 . . Scrap Searched . | . . . Spaces Dug . | . . . Terrain Destroyed 101 | . 90 11 Melee . | . . . Projectile . | . . . AOE 101 | . 90 11 Terrain Rammed . | . . . Walls Destroyed . | . . . Machines Disabled . | . . . Actions | -11 -10 -10 --------- Run | Yrd Mat Min Total 1249 | 59 1124 66 Wait 63 | . 63 . Move 1059 | 44 964 51 Hop . | . . . Pick Up 37 | 9 28 . Fast Attach . | . . . Attach 13 | 6 6 1 Detach . | . . . Swap 9 | . 9 . Drop 11 | . 11 . Fire 57 | . 43 14 Melee . | . . . Ram . | . . . Kick . | . . . Crush . | . . . Escape Stasis . | . . . Rewire . | . . . Trap . | . . . Miscellaneous . | . . . Route ------- -11/Scrapyard -10/Materials (discovered 5 exits: *Mat x3 / *Min / [*Sub]) -10/Mines History --------- Turn | Location | Event 6 | -11/Scrapyard | Discovered new exit (range 15) 60 | -11/Scrapyard | Entered Materials 80 | -10/Materials | Identified exit to Mines 245 | -10/Materials | Discovered new exit (range 8) 310 | -10/Materials | Build established: Mutant 472 | -10/Materials | Discovered new exit (range 10) 475 | -10/Materials | Identified exit to Materials 754 | -10/Materials | Core integrity fell below 50% 795 | -10/Materials | Lost 4 parts (1p2n1w) 1166 | -10/Materials | Discovered new exit (range 9) 1536 | -10/Materials | Entered Mines 1569 | -10/Mines | Assembled infested the area 1620 | -10/Mines | Core integrity fell below 20% 1625 | -10/Mines | Destroyed by as-41449 with Assembled Rifle Last Messages --------------- LOCATION=MINES GOAL=ESCAPE Something is scanning the area. 01539_ Pulverizer disabled. 01541_ S-10 Pest destroyed. 01549_ Destroyed Flight Unit. 01555_ Flight Unit melted. 01555_ S-10 Pest destroyed. 01557_ Acquired 37 matter. 01559_ Overheating: System interference. 01559_ Particle Cannon temporarily disabled. 01559_ Acquired 12 matter. 01569_ ALERT: Infestation in the mines, dispatching Demolisher response squad. 01617_ Destroyed Asb. Hover Unit. 01617_ Grenade Launcher destroyed. 01617_ as-34307 destroyed. 01624_ Lgt. Treads destroyed. 01624_ System corrupted by crushing effect (+4). 01624_ Knocked back. Map ----- +----------------------------------------------------+ | | | | | | | | | | | | | | | | | | | | | | | | | | | | | ?????????????????????????????????????????????????? | | ?????????????????????????????????????????????????? | | ?????????????????????????????????????????????????? | | ?????????????????????????????????????????????????? | | ?????????????????????????????????????????????????? | | ?????????????????????????????????????????????????? | | ?????????????????????????????????????????????????? | | ?????????????????????????????????????????????????? | | ??????????????????????####???????????????????????? | | ??????????????????????# ################????????? | | ??????????????????????# ## #????????? | | ??????????????????????# @ #????????? | | ??????????????????????# """" #????????? | | ??????????????????????#aaa ## """" #????????? | | ????????# ###### aa ## """" #????????? | | ??????? %! aaaa ### #????????? | | ??????? = %a a ##?# """ = #????????? | | ??????? ######## ###??# """ ** #????????? | | ???????? ????????????####????# """"= #????????? | | ??????????????????????????????# #????????? | | ??????????????????????????????# #????????? | | ??????????????????????????????###########????????? | | ?????????????????????????????????????????????????? | | ?????????????????????????????????????????????????? | | ?????????????????????????????????????????????????? | | ?????????????????????????????????????????????????? | | ?????????????????????????????????????????????????? | | ?????????????????????????????????????????????????? | | ?????????????????????????????????????????????????? | | ?????????????????????????????????????????????????? | | ?????????????????????????????????????????????????? | | ?????????????????????????????????????????????????? | | ?????????????????????????????????????????????????? | | ?????????????????????????????????????????????????? | | ?????????????????????????????????????????????????? | | ?????????????????????????????????????????????????? | +----------------------------------------------------+ Best States ------------- Heat Dissipation 35 Energy Generation 10 Energy Capacity 250 Matter Stores 268 Matter Capacity 300 Sight Range 16 Terrain Scan Density 10 Evasion (%) 40 Recoil Reduction 1 Offensive Hacking 10 Item Schematics ----------------- None Robot Schematics ------------------ None Fabricated ------------ Nothing Repaired ---------- Nothing Studied --------- None Alien Tech Used ----------------- None Achievements -------------- None Challenges ------------ None Game ------ Seed DisruptorSmartTreads Manual? 0 Play Time 00:16:04 Cumulative 39.1 hours Start 2026.08.30 @ 15:58:06 End 2026.08.30 @ 16:12:35 Sessions 1 Manual Loads 0 Difficulty Rogue Special Mode None Game No. 58 Rogue 58 Adventurer 0 Explorer 0 Win Type - Total 0 Types 0/0/0/0/0/0/0/0/0/0 Lore% 19 Gallery% 23 Achievement% 20 Wizard Run 0 Options --------- Layout 1 ASCII 0 Keyboard 0 Movement Mouse Keybinds 0 Fullscreen 1 Font 16/SmallcapsGlow Map View 50x40 Zoom Use 0% Tactical HUD 1 Map Filters NONE Filters NONE Steam SD RUN: e1d4a54d-3922-471e-a09e-7d47724ca35f